bitfinex/quotes_SOLUSD_20240920
["timestamp","ask_amount","ask_price","bid_price","bid_amount"]
[1726866174403,0.414654,146.97,146.96,45.38826364]
[1726866174603,0.414654,146.97,146.96,44.027864]
[1726866185724,0.414654,146.97,146.96,20.0]
[1726866185924,0.414654,146.97,146.91,20.0]
[1726866187104,0.414654,146.97,146.93,20.25098]
[1726866187339,0.414654,146.97,146.95,20.25098]
[1726866187507,0.414654,146.97,146.89,15.2076]
[1726866187508,0.414654,146.97,146.96,45.38840653]
[1726866187828,0.414654,146.97,146.96,44.027864]
[1726866188630,0.414654,146.97,146.96,45.38806036]
[1726866193427,0.414654,146.97,146.96,48.62821296]
[1726866194333,0.414654,146.97,146.96,48.63012308]
[1726866194639,0.2516498,147.0,146.98,23.776884]
[1726866194841,0.2516498,147.0,146.99,25.38766978]
[1726866195045,0.3168405,147.05,146.99,25.38766978]
[1726866195046,0.3168405,147.05,147.02,20.25098]
[1726866195345,0.3168405,147.05,147.02,23.49213633]
[1726866197034,0.3168405,147.05,147.04,44.027864]
[1726866197415,0.3168405,147.05,147.04,47.26698246]
[1726866198231,0.3168405,147.05,147.04,44.027864]
[1726866198534,0.3168405,147.05,147.04,47.26685263]
[1726866198733,0.3168405,147.05,147.04,46.747603]
[1726866198916,0.3168405,147.05,147.04,49.98663284]
[1726866199234,0.3168405,147.05,147.04,46.747603]
[1726866199412,0.3168405,147.05,147.04,49.98693423]
[1726866200019,0.3168405,147.05,147.04,48.10704478]
[1726866200218,0.3168405,147.05,147.04,51.34637601]
[1726866200723,0.3168405,147.05,147.04,49.98693423]
[1726866201556,0.3168405,147.05,147.04,51.34633571]
[1726866202654,0.3168405,147.05,147.04,49.98693423]
[1726866203252,0.3168405,147.05,147.04,51.34633603]
[1726866203454,0.3168405,147.05,147.04,49.98693423]
[1726866203840,0.3168405,147.05,147.04,46.747603]
[1726866204029,0.3168405,147.05,147.04,49.98962457]
[1726866206053,0.3168405,147.05,147.04,51.34900675]
[1726866206558,0.0978135,147.06,147.05,44.027864]
[1726866206755,0.1596191,147.08,147.05,55.02760893]
[1726866206958,0.1596191,147.08,147.07,20.0]
[1726866207133,0.1596191,147.08,147.07,29.55952157]
[1726866207333,0.1596191,147.08,147.07,30.91839744]
[1726866208334,0.1596191,147.08,147.07,23.24202157]
[1726866208534,0.1596191,147.08,147.07,47.26988557]
[1726866209935,0.3558146,147.14,147.09,20.0]
[1726866210156,0.3558146,147.14,147.11,0.25098]
[1726866210342,0.3558146,147.14,147.13,0.25098]
[1726866215532,0.3558146,147.14,147.13,20.0]
[1726866215736,0.3558146,147.14,147.13,45.38671377]
[1726866215951,0.3558146,147.14,147.13,44.027864]
[1726866222350,0.3558146,147.14,146.98,4.55692962]
[1726866222672,0.3558146,147.14,147.04,3.22678531]
[1726866222673,16.2157,147.13,147.04,3.22678531]
[1726866222959,16.2157,147.13,147.03,9.54428531]
[1726866223544,16.2157,147.13,147.03,6.3175]
[1726866223744,16.2157,147.13,147.04,20.0]
[1726866224367,16.2157,147.13,147.05,24.027864]
[1726866224663,16.2157,147.13,147.06,20.0]
[1726866224969,16.2157,147.13,147.09,23.776884]
[1726866226263,16.2157,147.13,147.1,1.35932557]
[1726866226491,16.2157,147.13,147.11,23.776884]
[1726866226775,16.2157,147.13,147.12,25.13615894]
[1726866227170,16.2157,147.13,147.12,23.776884]
[1726866228153,0.3558146,147.14,147.12,24.027864]
[1726866228365,0.3558146,147.14,147.13,25.13585056]
[1726866228569,0.3558146,147.14,147.13,25.38683056]
[1726866229169,0.3558146,147.14,147.13,24.027864]
[1726866231186,0.3558146,147.14,147.13,44.027864]
[1726866233271,0.3558146,147.14,147.13,46.745943]
[1726866236877,0.3558146,147.14,147.13,46.494963]
[1726866237196,0.3558146,147.14,147.13,2.718079]
[1726866238483,0.3558146,147.14,147.13,26.494963]
[1726866238698,0.3558146,147.14,147.13,46.494963]
[1726866239194,0.3558146,147.14,147.13,46.745943]
[1726866245219,0.3558146,147.14,147.13,48.10454569]
[1726866245883,0.0978135,147.15,147.14,44.027864]
[1726866248678,0.0978135,147.15,147.14,45.38631938]
[1726866248880,0.0978135,147.15,147.13,22.718079]
[1726866249589,0.0978135,147.15,147.14,1.35860827]
[1726866250396,0.0978135,147.15,147.14,25.38647227]
[1726866250886,0.0978135,147.15,147.14,45.38647227]
[1726866253504,0.0978135,147.15,147.14,44.027864]
[1726866257915,0.0978135,147.15,147.14,20.0]
[1726866258290,0.0978135,147.15,147.13,2.718079]
[1726866258912,0.0978135,147.15,147.14,1.35871775]
[1726866259403,0.0978135,147.15,147.14,25.38658175]
[1726866259609,0.0978135,147.15,147.14,45.38658175]
[1726866260300,0.0978135,147.15,147.14,44.027864]
[1726866261192,0.0978135,147.15,147.14,45.38646311]
[1726866262007,0.0978135,147.15,147.14,45.38646513]
[1726866263718,0.2906239,147.19,147.15,44.027864]
[1726866263891,0.2906239,147.19,147.17,0.25098]
[1726866264092,0.2906239,147.19,147.18,1.60936277]
[1726866264995,0.2906239,147.19,147.18,0.25098]
[1726866265522,0.2906239,147.19,147.18,1.6090681]
[1726866265724,0.0651907,147.22,147.19,0.25098]
[1726866269021,15.4862,147.26,147.19,0.25098]
[1726866269229,0.1452112,147.22,147.19,0.25098]
[1726866270117,0.1452112,147.22,147.21,24.027864]
[1726866270301,0.1452112,147.22,147.19,0.25098]
[1726866270895,0.1452112,147.22,147.21,24.027864]
[1726866271215,0.3425055,147.3,147.21,24.027864]
[1726866271216,0.34911516,147.32,147.21,24.027864]
[1726866271523,0.12549,147.31,147.23,23.776884]
[1726866272031,0.12549,147.31,147.21,24.027864]
[1726866272213,0.34911516,147.32,147.23,23.902374]
[1726866272525,0.34911516,147.32,147.21,24.027864]
[1726866274330,22.8487,147.31,147.21,24.027864]
[1726866276117,22.8487,147.31,147.23,24.027864]
[1726866276317,22.8487,147.31,147.25,23.776884]
[1726866276504,22.8487,147.31,147.26,1.35790668]
[1726866280332,22.8487,147.31,147.25,23.776884]
[1726866281442,22.8487,147.31,147.26,0.25098]
[1726866283926,22.8487,147.31,147.25,23.776884]
[1726866284126,22.8487,147.31,147.13,14.84104652]
[1726866284326,22.8487,147.31,147.2,20.0]
[1726866285517,22.8487,147.31,147.21,24.027864]
[1726866287034,16.3135,147.3,147.2,20.0]
[1726866287238,6.583,147.31,147.13,7.08332316]
[1726866287239,42.57249,147.29,147.13,7.08332316]
[1726866287416,6.25899,147.23,147.13,7.08332316]
[1726866288527,6.1335,147.23,147.14,1.35890581]
[1726866288721,6.1335,147.23,147.13,7.08332316]
[1726866289945,6.1335,147.23,147.16,0.12549]
[1726866294823,6.1335,147.23,147.18,0.25098]
[1726866295545,16.3135,147.24,147.2,23.776884]
[1726866296645,16.3135,147.24,147.21,0.12549]
[1726866297224,6.5206,147.27,147.23,0.25098]
[1726866297445,6.5206,147.27,147.24,23.776884]
[1726866298443,15.0466,147.28,147.24,23.776884]
[1726866299745,6.5206,147.31,147.25,1.60890138]
[1726866299939,6.5206,147.31,147.27,23.776884]
[1726866300252,15.1444135,147.33,147.27,23.776884]
[1726866300948,15.1444135,147.33,147.28,0.25098]
[1726866301126,0.0978135,147.33,147.3,0.25098]
[1726866301325,0.0978135,147.33,147.32,24.027864]
[1726866301741,0.0978135,147.33,147.32,23.776884]
[1726866301941,0.7642338,147.39,147.33,0.25098]
[1726866302360,0.7642338,147.39,147.32,23.776884]
[1726866302569,0.7642338,147.39,147.33,0.25098]
[1726866303759,9.29572159,147.45,147.33,0.25098]
[1726866303961,6.5206,147.43,147.33,0.25098]
[1726866305063,21.5672,147.43,147.33,0.25098]
[1726866305364,21.5672,147.43,147.35,0.25098]
[1726866305554,21.5672,147.43,147.37,23.776884]
[1726866305750,21.5672,147.43,147.34,0.25098]
[1726866306145,21.5672,147.43,147.3,0.0655143]
[1726866306466,21.5672,147.43,147.3,20.0655143]
[1726866307458,0.2623214,147.45,147.31,25.38466926]
[1726866307649,0.2623214,147.45,147.34,26.5714]
[1726866307840,0.2623214,147.45,147.37,24.027864]
[1726866308266,0.2623214,147.45,147.39,24.027864]
[1726866308468,0.2623214,147.45,147.41,23.776884]
[1726866308667,0.2623214,147.45,147.39,24.027864]
[1726866312468,0.2623214,147.45,147.41,24.027864]
[1726866314170,0.2623214,147.45,147.41,66.032164]
[1726866314487,0.2623214,147.45,147.41,15.6435]
[1726866314767,0.2623214,147.45,147.42,1.35616313]
[1726866314965,0.2623214,147.45,147.41,15.6435]
[1726866315965,0.2623214,147.45,147.42,24.027864]
[1726866316875,0.2623214,147.45,147.43,20.0]
[1726866317055,0.2623214,147.45,147.44,24.027864]
[1726866317256,0.2623214,147.45,147.44,45.38366281]
[1726866317468,0.2623214,147.45,147.44,44.027864]
[1726866319051,0.0651907,147.48,147.45,20.0]
[1726866319279,0.0651907,147.48,147.46,0.25098]
[1726866321060,0.0651907,147.48,147.46,24.027864]
[1726866321777,0.0651907,147.48,147.47,24.027864]
[1726866321969,0.0651907,147.48,147.47,1.60672655]
[1726866322274,0.0651907,147.48,147.41,21.62674244]
[1726866322976,0.0651907,147.48,147.41,15.6435]
[1726866323179,0.0651907,147.48,147.37,15.6435]
[1726866324785,0.0651907,147.48,147.38,20.0]
[1726866325355,0.0651907,147.48,147.37,15.6435]
[1726866326175,0.0651907,147.48,147.38,1.3564413]
[1726866326355,0.0651907,147.48,147.39,24.027864]
[1726866326560,0.0651907,147.48,147.39,0.25098]
[1726866327860,0.0651907,147.48,147.41,24.027864]
[1726866328063,0.0651907,147.48,147.41,0.12549]
[1726866329580,0.0651907,147.48,147.42,23.902374]
[1726866329784,0.0651907,147.48,147.43,1.3562795]
[1726866330171,0.0651907,147.48,147.42,23.776884]
[1726866330357,0.0651907,147.48,147.43,1.35630913]
[1726866330758,0.0651907,147.48,147.43,0.25098]
[1726866331165,0.0651907,147.48,147.42,23.776884]
[1726866331382,0.0651907,147.48,147.45,0.25098]
[1726866331699,0.0651907,147.48,147.46,1.35600476]
[1726866331982,0.0651907,147.48,147.45,0.25098]
[1726866332183,0.0651907,147.48,147.46,1.35600731]
[1726866332388,0.0651907,147.48,147.47,25.38378067]
[1726866332568,0.0651907,147.48,147.47,24.027864]
[1726866335074,0.0651907,147.48,147.37,15.6435]
[1726866335265,0.0651907,147.48,147.38,44.027864]
[1726866335471,0.0651907,147.48,147.38,59.88243109]
[1726866337797,0.0651907,147.48,147.38,35.85456709]
[1726866339277,0.0651907,147.48,147.43,20.0]
[1726866339488,0.0651907,147.48,147.44,24.027864]
[1726866341281,0.0651907,147.48,147.46,24.027864]
[1726866341480,0.0651907,147.48,147.47,25.25823231]
[1726866341892,0.0651907,147.48,147.47,25.38372231]
[1726866342291,0.0651907,147.48,147.47,24.027864]
[1726866343599,0.0651907,147.48,147.43,21.35573741]
[1726866344397,0.0651907,147.48,147.43,20.0]
[1726866344775,0.0651907,147.48,147.44,24.027864]
[1726866346282,0.0651907,147.48,147.46,24.027864]
[1726866346491,0.0651907,147.48,147.47,24.027864]
[1726866346985,0.0651907,147.48,147.3,33.64096189]
[1726866346986,21.8991907,147.48,147.37,15.6435]
[1726866347390,0.0651907,147.48,147.37,15.6435]
[1726866347591,0.0651907,147.48,147.39,6.0047]
[1726866347797,0.0651907,147.48,147.4,8.09684373]
[1726866347993,0.0651907,147.48,147.41,1.35582113]
[1726866348194,0.0651907,147.48,147.41,17.21038822]
[1726866348402,0.0651907,147.48,147.42,32.12470773]
[1726866349212,0.0651907,147.48,147.44,24.027864]
[1726866349913,0.0651907,147.48,147.44,32.12470773]
[1726866350281,0.0651907,147.48,147.46,24.027864]
[1726866350591,0.0651907,147.48,147.47,25.38328443]
[1726866350795,0.0651907,147.48,147.47,24.027864]
[1726866351414,0.0651907,147.48,147.47,52.12470773]
[1726866351583,0.4256492,147.51,147.48,60.323464]
[1726866351784,0.1748492,147.51,147.5,26.58748]
[1726866351990,0.1748492,147.51,147.5,34.68432373]
[1726866352808,0.1748492,147.51,147.5,28.34782373]
[1726866353186,0.1748492,147.51,147.5,36.10554709]
[1726866353509,0.1748492,147.51,147.49,20.0]
[1726866353681,0.1748492,147.51,147.5,23.776884]
[1726866353884,0.1748492,147.51,147.5,23.902374]
[1726866354588,0.1748492,147.51,147.45,15.85456709]
[1726866354812,0.1748492,147.51,147.47,0.15914071]
[1726866355102,0.1748492,147.51,147.46,0.04078857]
[1726866355287,0.1748492,147.51,147.46,0.15914071]
[1726866355903,0.1748492,147.51,147.47,24.027864]
[1726866356101,0.1748492,147.51,147.48,0.04078857]
[1726866357299,0.1748492,147.51,147.46,0.04078857]
[1726866357509,0.1748492,147.51,147.44,0.04078857]
[1726866358784,0.1748492,147.51,147.45,24.027864]
[1726866358989,0.1748492,147.51,147.46,0.16627857]
[1726866361694,0.1748492,147.51,147.48,24.027864]
[1726866363597,0.1748492,147.51,147.44,20.0]
[1726866363989,22.5621,147.55,147.44,20.0]
[1726866364196,0.2487093,147.51,147.44,20.0]
[1726866364795,0.2487093,147.51,147.45,24.027864]
[1726866365006,0.2487093,147.51,147.45,23.902374]
[1726866365404,16.4569,147.5,147.4,8.09684373]
[1726866365606,6.1052,147.49,147.42,0.04064902]
[1726866366031,6.1052,147.49,147.4,0.04064902]
[1726866367229,15.0186,147.48,147.4,0.04064902]
[1726866367523,15.0186,147.48,147.39,0.06309847]
[1726866367896,15.0186,147.46,147.39,0.06309847]
[1726866368127,6.6552,147.45,147.39,0.06309847]
[1726866368294,15.0186,147.44,147.39,0.06309847]
[1726866369196,38.892664,147.43,147.34,0.2716277]
[1726866369402,13.82091059,147.42,147.34,0.2716277]
[1726866369616,0.25098,147.41,147.34,0.2716277]
[1726866370021,0.12549,147.39,147.34,0.2716277]
[1726866370195,14.6319,147.4,147.34,0.2716277]
[1726866370703,6.6552,147.38,147.25,0.3368184]
[1726866371020,23.902374,147.41,147.25,0.3368184]
[1726866371021,0.25098,147.33,147.25,0.3368184]
[1726866371213,20.0,147.32,147.25,0.3368184]
[1726866371419,24.027864,147.29,147.25,0.3368184]
[1726866371608,24.027864,147.29,147.2,0.3694412]
[1726866371806,0.12549,147.27,147.2,0.3694412]
[1726866372528,0.12549,147.27,147.17,0.0651907]
[1726866372529,24.027864,147.25,147.17,0.0651907]
[1726866372840,0.25098,147.25,147.17,0.0651907]
[1726866373005,24.027864,147.25,147.17,0.0651907]
[1726866373600,13.5545,147.26,147.17,0.0651907]
[1726866375533,0.12549,147.25,147.17,0.0651907]
[1726866376023,20.64114691,147.26,147.17,0.0651907]
[1726866376945,20.64114691,147.26,147.17,0.1906807]
[1726866377113,13.5545,147.26,147.17,0.1906807]
[1726866378132,13.5545,147.26,147.17,0.0651907]
[1726866379031,13.5545,147.26,147.18,23.776884]
[1726866379336,13.5545,147.26,147.19,1.35855444]
[1726866380532,13.5545,147.26,147.19,23.776884]
[1726866381534,13.5545,147.26,147.19,0.12549]
[1726866381713,13.5545,147.26,147.19,0.25098]
[1726866382041,13.5545,147.26,147.18,23.776884]
[1726866382042,13.5545,147.26,147.17,0.0651907]
[1726866382418,13.5545,147.26,147.17,0.1906807]
[1726866382643,13.5545,147.26,147.18,23.776884]
[1726866383329,13.5545,147.26,147.19,1.35855732]
[1726866384225,6.0089,147.26,147.21,0.25098]
[1726866384437,0.0885279,147.31,147.21,0.25098]
[1726866384438,21.1976,147.3,147.23,20.25098]
[1726866384740,21.1976,147.3,147.25,23.776884]
[1726866385222,21.1976,147.3,147.24,23.776884]
[1726866388341,21.1976,147.3,147.25,1.35801061]
[1726866388521,21.1976,147.3,147.24,23.776884]
[1726866389641,21.1976,147.3,147.14,13.78110015]
[1726866389642,21.1976,147.3,147.18,20.0]
[1726866389945,0.12549,147.29,147.18,20.0]
[1726866390146,0.12549,147.29,147.17,0.0651907]
[1726866390339,0.25098,147.29,147.17,0.0651907]
[1726866391324,0.12549,147.29,147.17,0.0651907]
[1726866391530,21.1976,147.3,147.17,0.0651907]
[1726866392336,21.1976,147.3,147.18,0.12549]
[1726866392657,21.1976,147.3,147.19,20.0]
[1726866393149,21.1976,147.3,147.2,23.776884]
[1726866393351,21.1976,147.3,147.21,1.35837299]
[1726866394150,21.1976,147.3,147.21,20.25098]
[1726866394353,21.1976,147.3,147.23,23.776884]
[1726866394543,21.1976,147.3,147.21,20.12549]
[1726866394858,21.1976,147.3,147.22,25.13512604]
[1726866395639,21.1976,147.3,147.22,25.13512891]
[1726866395855,21.1976,147.3,147.22,23.776884]
[1726866396343,21.1976,147.3,147.24,23.776884]
[1726866396549,21.1976,147.3,147.25,1.35802443]
[1726866397048,21.1976,147.3,147.23,0.25098]
[1726866397359,21.1976,147.3,147.22,23.776884]
[1726866398146,21.1976,147.3,147.23,0.25098]
[1726866398340,21.1976,147.3,147.24,23.776884]
[1726866399937,0.0885279,147.31,147.26,23.776884]
[1726866400149,0.0885279,147.31,147.28,23.776884]
[1726866400461,0.0885279,147.31,147.26,23.776884]
[1726866400637,0.0885279,147.31,147.28,23.776884]
[1726866401258,0.0885279,147.31,147.29,1.35763037]
[1726866401933,0.0885279,147.31,147.3,23.776884]
[1726866402130,0.0885279,147.31,147.3,24.027864]
[1726866402355,0.0885279,147.31,147.3,45.385246]
[1726866402552,5.8729279,147.37,147.31,20.25098]
[1726866402759,5.8729279,147.37,147.32,23.776884]
[1726866403538,5.8729279,147.37,147.24,6.31704604]
[1726866403763,5.8729279,147.37,147.26,23.776884]
[1726866403946,5.8729279,147.37,147.29,20.25098]
[1726866404251,5.8729279,147.37,147.3,23.776884]
[1726866405554,15.6895,147.38,147.33,0.25098]
[1726866405762,15.6895,147.38,147.32,23.776884]
[1726866406332,15.6895,147.38,147.32,23.746894]
[1726866407437,15.6895,147.38,147.32,25.10426839]
[1726866407637,15.6895,147.38,147.32,23.746894]
[1726866408054,15.6895,147.38,147.33,0.25098]
[1726866408256,15.6895,147.38,147.32,23.746894]
[1726866408459,0.420151,147.39,147.35,0.25098]
[1726866408953,0.420151,147.39,147.34,23.776884]
[1726866409347,0.420151,147.39,147.35,20.0]
[1726866409863,0.420151,147.39,147.36,25.1340265]
[1726866410654,0.420151,147.39,147.37,0.25098]
[1726866411538,0.420151,147.39,147.38,1.35675839]
[1726866411738,0.420151,147.39,147.38,45.38462239]
[1726866412559,0.420151,147.39,147.38,44.027864]
[1726866412862,0.420151,147.39,147.38,45.38434608]
[1726866413158,0.420151,147.39,147.38,44.027864]
[1726866413356,6.5397062,147.48,147.39,44.027864]
[1726866415252,0.0033062,147.48,147.42,20.0]
[1726866415451,0.0033062,147.48,147.43,1.3563387]
[1726866415866,0.0033062,147.48,147.39,43.902374]
[1726866415867,0.0033062,147.48,147.4,0.12549]
[1726866419168,0.0033062,147.48,147.41,23.902374]
[1726866419369,0.0033062,147.48,147.42,21.35641331]
[1726866419748,0.0033062,147.48,147.42,1.35641331]
[1726866420368,0.0033062,147.48,147.43,23.776884]
[1726866420566,0.0033062,147.48,147.44,1.35628014]
[1726866421161,0.0033062,147.48,147.43,23.776884]
[1726866422764,0.0033062,147.48,147.36,6.3671]
[1726866424054,0.1287962,147.48,147.37,20.0]
[1726866424857,0.1287962,147.48,147.36,6.3671]
[1726866425063,6.5364,147.46,147.33,6.3671]
[1726866425263,0.12549,147.45,147.33,6.3671]
[1726866425864,0.25098,147.45,147.33,6.3671]
[1726866426053,15.1121,147.44,147.33,6.3671]
[1726866426576,15.1121,147.44,147.3,15.9448]
[1726866426777,0.12549,147.43,147.31,0.06850265]
[1726866426960,0.12549,147.43,147.31,0.04064902]
[1726866427962,0.12549,147.43,147.32,0.12549]
[1726866428262,0.12549,147.43,147.32,0.25098]
[1726866430559,15.1121,147.44,147.32,0.25098]
[1726866430755,15.1121,147.44,147.36,0.12549]
[1726866431063,15.1121,147.44,147.38,23.776884]
[1726866431472,15.1121,147.44,147.37,21.35677145]
[1726866431678,15.1121,147.44,147.38,23.776884]
[1726866431857,15.1121,147.44,147.39,20.0]
[1726866432453,0.0033062,147.48,147.42,20.25098]
[1726866432454,15.3596062,147.48,147.42,20.25098]
[1726866432654,15.3596062,147.48,147.44,23.776884]
[1726866432960,0.0033062,147.48,147.45,1.35626626]
[1726866433369,0.0033062,147.48,147.45,21.35626626]
[1726866433574,0.0033062,147.48,147.46,23.776884]
[1726866433864,0.0033062,147.48,147.47,25.1329282]
[1726866434780,0.0033062,147.48,147.47,23.776884]
[1726866435680,0.0033062,147.48,147.46,23.776884]
[1726866436255,0.0033062,147.48,147.47,1.35600096]
[1726866436491,0.0033062,147.48,147.47,45.13288496]
[1726866436782,0.0033062,147.48,147.47,44.027864]
[1726866438080,0.0033062,147.48,147.38,15.739]
[1726866438261,0.0033062,147.48,147.39,20.12549]
[1726866438767,0.0033062,147.48,147.39,20.0]
[1726866438967,0.0033062,147.48,147.38,15.739]
[1726866440688,0.0033062,147.48,147.4,0.25098]
[1726866440873,0.0033062,147.48,147.42,20.25098]
[1726866441191,0.0033062,147.48,147.43,23.776884]
[1726866442571,21.5525062,147.48,147.39,20.0]
[1726866442879,21.5525062,147.48,147.35,15.739]
[1726866443064,21.5525062,147.48,147.36,0.04064902]
[1726866443965,21.5525062,147.48,147.37,0.12549]
[1726866444162,21.5525062,147.48,147.37,44.027864]
[1726866445493,21.5525062,147.48,147.37,20.0]
[1726866445668,21.5525062,147.48,147.35,15.739]
[1726866445873,21.5525062,147.48,147.36,0.04064902]
[1726866446687,21.5525062,147.48,147.36,1.39718901]
[1726866446869,21.5525062,147.48,147.38,20.0]
[1726866447068,21.5525062,147.48,147.4,20.0]
[1726866447288,21.5525062,147.48,147.41,25.13342422]
[1726866447980,21.5525062,147.48,147.41,23.776884]
[1726866448574,21.5525062,147.48,147.4,20.0]
[1726866448776,21.5525062,147.48,147.36,20.0]
[1726866448966,21.5525062,147.48,147.36,20.04064902]
[1726866449388,21.5525062,147.48,147.37,1.35669204]
[1726866449571,21.5525062,147.48,147.36,20.0]
[1726866449773,21.5525062,147.48,147.37,24.027864]
[1726866449987,21.5525062,147.48,147.38,20.0]
[1726866450394,21.5525062,147.48,147.39,23.776884]
[1726866450593,21.5525062,147.48,147.4,20.0]
[1726866450973,21.5525062,147.48,147.41,23.776884]
[1726866451298,21.5525062,147.48,147.4,20.0]
[1726866451598,21.5525062,147.48,147.39,23.776884]
[1726866451801,0.25098,147.47,147.33,6.144651]
[1726866452013,24.027864,147.47,147.36,0.04064902]
[1726866452224,15.0271,147.46,147.36,0.04064902]
[1726866452526,6.1098,147.44,147.34,0.04064902]
[1726866452805,6.1098,147.44,147.34,1.39782358]
[1726866453101,6.1098,147.44,147.34,0.04064902]
[1726866454305,6.1098,147.44,147.34,24.06851302]
[1726866454506,6.1098,147.44,147.34,0.29162902]
[1726866454803,6.1098,147.44,147.35,23.776884]
[1726866455003,6.1098,147.44,147.36,20.04064902]
[1726866458309,0.12549,147.43,147.36,20.04064902]
[1726866459711,0.12549,147.43,147.36,0.04064902]
[1726866459889,0.12549,147.43,147.36,20.04064902]
[1726866466019,6.1098,147.44,147.37,25.13394351]
[1726866466398,6.1098,147.44,147.37,23.776884]
[1726866468908,6.1098,147.44,147.38,0.12549]
[1726866469906,6.1098,147.44,147.38,1.48221986]
[1726866470118,15.0271,147.46,147.39,23.776884]
[1726866470343,0.12549,147.45,147.36,20.0]
[1726866470627,0.12549,147.45,147.33,0.103651]
[1726866470806,0.12549,147.45,147.34,0.15927536]
[1726866470998,24.027864,147.45,147.33,0.103651]
[1726866472904,24.027864,147.45,147.33,24.006025]
[1726866473424,24.027864,147.45,147.36,20.0]
[1726866473802,0.12549,147.43,147.36,20.0]
[1726866474003,0.12549,147.39,147.33,0.103651]
[1726866474418,0.12549,147.37,147.33,0.103651]
[1726866480728,24.027864,147.37,147.33,0.103651]
[1726866481326,6.2152,147.36,147.33,0.103651]
[1726866481526,16.06819,147.34,147.33,0.103651]
[1726866481921,24.027864,147.34,147.26,0.4809965]
[1726866482124,7.42718,147.33,147.26,0.4809965]
[1726866486234,7.1762,147.33,147.26,0.4809965]
[1726866486432,7.1762,147.33,147.26,24.2578805]
[1726866487131,7.1762,147.33,147.27,20.0]
[1726866493143,0.12549,147.32,147.26,0.4809965]
[1726866494342,0.12549,147.32,147.26,0.4237501]
[1726866495818,6.2665,147.31,147.26,0.4237501]
[1726866496330,0.12549,147.3,147.26,0.4237501]
[1726866497746,0.25098,147.3,147.26,0.4237501]
[1726866498130,0.12549,147.3,147.26,0.4237501]
[1726866499927,6.2665,147.31,147.26,0.4237501]
[1726866500853,7.1762,147.33,147.26,0.4237501]
[1726866501431,6.2665,147.35,147.28,23.776884]
[1726866501648,15.598,147.37,147.3,23.776884]
[1726866502357,15.598,147.37,147.31,20.0]
[1726866508155,15.598,147.37,147.32,25.13428664]
[1726866508650,15.598,147.37,147.32,23.776884]
[1726866509566,15.598,147.37,147.32,23.8752312]
[1726866515160,6.2665,147.39,147.33,20.0]
[1726866515352,15.9106,147.41,147.35,20.0]
[1726866517054,6.4045,147.43,147.36,25.1339992]
[1726866517258,6.4045,147.43,147.36,23.776884]
[1726866517867,6.4045,147.43,147.37,1.35693955]
[1726866518248,6.4045,147.43,147.36,23.776884]
[1726866518948,6.4045,147.43,147.37,1.35693605]
[1726866519261,0.1651712,147.44,147.38,23.776884]
[1726866520452,0.1651712,147.44,147.4,23.776884]
[1726866520854,0.1651712,147.44,147.37,0.12549]
[1726866521064,0.1651712,147.44,147.38,20.0]
[1726866521263,0.1651712,147.44,147.41,23.776884]
[1726866521467,0.1651712,147.44,147.42,1.35649771]
[1726866521850,0.1651712,147.44,147.41,23.776884]
[1726866522052,0.1651712,147.44,147.43,23.776884]
[1726866522563,0.1651712,147.44,147.43,43.776884]
[1726866522997,0.1651712,147.44,147.43,45.38422993]
[1726866523638,0.1651712,147.44,147.43,59.653864]
[1726866524957,0.1651712,147.44,147.43,65.877364]
[1726866525958,0.2635184,147.49,147.45,23.776884]
[1726866526167,0.2635184,147.49,147.46,20.25098]
[1726866526366,0.2635184,147.49,147.47,23.776884]
[1726866526539,0.2635184,147.49,147.48,45.13281773]
[1726866526963,0.2635184,147.49,147.43,21.97499]
[1726866527175,0.2635184,147.49,147.44,20.0]
[1726866527573,0.2635184,147.49,147.45,1.35611325]
[1726866527868,0.2635184,147.49,147.44,20.0]
[1726866528591,0.2635184,147.49,147.45,23.776884]
[1726866528791,0.2635184,147.49,147.43,21.97499]
[1726866528792,0.2635184,147.49,147.48,43.776884]
[1726866528991,0.2635184,147.49,147.48,45.3836846]
[1726866529287,0.2635184,147.49,147.48,44.027864]
[1726866530512,0.2635184,147.54,147.49,24.027864]
[1726866530796,0.2635184,147.54,147.51,24.027864]
[1726866530992,0.2635184,147.54,147.53,24.027864]